[Event "Romanian Championship 2024"]
[Site "Eforie Nord"]
[Date "2024.02.28"]
[Round "6.5"]
[White "Radu, David Cr."]
[Black "Magold, Filip"]
[Result "1/2-1/2"]
[ECO "B22"]
[WhiteElo "2142"]
[BlackElo "2400"]
[Annotator "TA"]
[PlyCount "127"]
[EventDate "2024.02.24"]
[EventType "swiss"]
[EventCountry "ROU"]
[SourceTitle "playchess.com"]
[Source "ChessBase"]
[SourceQuality "1"]
[TimeControl "40/5400+30:900+30"]

{[%evp 13,127,0,16,5,9,20,11,16,16,5,4,6,12,8,6,-16,-14,-19,29,27,14,14,13,-23,-35,-41,-39,-34,-28,-27,-26,-63,-36,-28,-18,-33,-11,-26,-41,-12,-10,-11,-12,-62,0,0,0,-56,-66,-59,0,-81,-45,-39,-41,-60,-1,-21,-5,-70,-70,-70,-70,-74,-72,-67,-72,-105,-60,-105,-105,-105,-105,-129,-105,-105,-81,-105,-89,-89,0,-105,-60,-68,-60,-60,-60,-69,-23,-23,-20,-20,-20,-33,-33,-131,-8,-8,0,0,0,0,0,0,0,0,0,0,0,0,0,0,0,0,0,0]} 1. e4 {[%emt 0:00:04][%cal Be2e4,Be4e5][%mdl 32]} c5 {[%emt 0:00:37]} 2. c3 {[%emt 0:00:45]} Nf6 {[%emt 0:00:05]} 3. e5 {[%emt 0:00:09]} Nd5 {[%emt 0:00:04]} 4. Nf3 {[%emt 0:00:15]} Nc6 {[%emt 0:00:03]} 5. Bc4 {[%emt 0:00:41]} Nb6 {[%emt 0:00:07]} 6. Bb3 {[%emt 0:00:42]} d5 {[%emt 0:00:25]} 7. exd6 {[%emt 0:00:40]} Qxd6 {[%emt 0:00:08]} 8. O-O {[%emt 0:00:20]} Be6 {[%emt 0:00:03]} 9. Bxe6 {[%emt 0:01:17]} Qxe6 {[%emt 0:00:04]} 10. a4 {[%emt 0:00:08][%cal Ba2a4,Ba4a5,Ba5a6][%mdl 32]} Qd7 {[%emt 0:01:37]} 11. a5 {[%emt 0:01:53]} Nd5 {[%emt 0:00:26]} 12. a6 {[%emt 0:00:57]} b5 {[%emt 0:00:21]} 13. d4 {[%emt 0:10:50]} e6 {[%emt 0:03:54]} 14. Ne5 {[%emt 0:05:19]} (14. Na3 $5) 14... Qc7 {[%emt 0:15:17]} 15. Re1 {[%emt 0:04:23]} Bd6 {[%emt 0:14:53]} (15... c4 $142) 16. Na3 $11 {[%emt 0:23:34]} Rb8 {[%emt 0:07:31]} 17. Nxc6 {[%emt 0:01:18]} Qxc6 {[%emt 0:00:13]} 18. Qg4 {[%emt 0:00:04]} Nf6 $1 {[%emt 0:00:22]} (18... O-O $2 19. Bh6 g6 20. dxc5 Qxc5 21. Bxf8 Kxf8 22. Nc2 $18) 19. Qh4 {[%emt 0:07:30]} (19. Qxg7 $2 Rg8 $19) 19... cxd4 {[%emt 0:10:49]} 20. Bg5 {[%emt 0:05:21]} Nd5 {[%emt 0:04:13]} 21. Qxd4 {[%emt 0:19:35]} O-O {[%emt 0:00:10]} 22. Qg4 {[%emt 0:00:22]} (22. Qxa7 $2 Bc5 $19) 22... Kh8 {[%emt 0:06:39][%cal Ob8b6]} (22... Qxa6 $2 23. Bh6 g6 24. Qd4 $18) 23. Nc2 {[%emt 0:00:08]} Bc5 {[%emt 0:09:52]} 24. Qh3 {[%emt 0:03:55]} (24. Ne3 {simplifies} Nxe3 25. Bxe3 Bxe3 26. Rxe3 Rbd8 27. Qe4) 24... f6 {[%emt 0:09:31]} (24... Kg8 {simplifies} 25. Ne3 Nxe3 26. Bxe3 Rfd8) 25. Rxe6 {[%emt 0:03:26]} Bxf2+ {[%emt 0:00:16]} 26. Kh1 $1 {[%emt 0:00:58]} Qc4 {[%emt 0:01:13]} 27. Be3 {[%emt 0:02:20]} Qb3 {[%emt 0:12:18]} 28. Qf5 {[%emt 0:05:54]} (28. Bxf2 $11 Nf4 29. Qf5 (29. Nd4 $2 Qxb2 30. Qf5 Nxe6 $19) 29... Nxe6 30. Bxa7) 28... Bxe3 {[%emt 0:02:25]} (28... Qxb2 $2 29. Bxf2 (29. Qxf2 Nxe3 30. Rxe3 b4 $18) 29... Rbd8 30. Bxa7 $18) (28... Nxe3 $15 29. Nxe3 Qxb2) 29. Nxe3 {[%emt 0:00:03]} Qxb2 {[%emt 0:00:24]} 30. Rb1 {[%emt 0:00:27]} ({White should play} 30. Re1 $1 $11 Nc7 (30... Qxc3 $2 31. Nxd5 Qd4 32. Ne7 $18) (30... Nxc3 31. Qc5 $11) 31. Rc6) 30... Nxe3 $15 {[%emt 0:00:10]} (30... Qxc3 $2 {is the wrong capture.} 31. Nxd5 Qd2 32. Re7 $18) 31. Rxe3 {[%emt 0:00:01][%cal Be6e3,Be3d3,Bd3d7][%mdl 32]} Qd2 {[%emt 0:00:53]} (31... Qa3 $15 32. Re6 Qxc3) 32. Qd3 {[%emt 0:01:21]} (32. Re7 $11 {remains equal.}) 32... Qxd3 {[%emt 0:00:54]} 33. Rxd3 $17 {[%emt 0:00:01][%mdl 4096] Endgame. KRR-KRR} Rb6 {[%emt 0:00:14]} 34. h3 {[%emt 0:00:29]} Ra8 {[%emt 0:00:35]} (34... Rxa6 $15 35. Rxb5 Rc6) 35. Rd7 {[%emt 0:01:02]} h6 {[%emt 0:00:19]} 36. Re1 {[%emt 0:01:21]} (36. Ra1 $11) 36... Rxa6 $15 {[%emt 0:00:43]} 37. Ree7 {[%emt 0:00:09]} Rg8 {[%emt 0:00:03]} 38. Rb7 {[%emt 0:01:11]} Ra1+ {[%emt 0:00:28]} 39. Kh2 {[%emt 0:00:01]} a6 {[%emt 0:00:04]} 40. Rec7 {[%emt 0:00:00]} Ra4 {[%emt 0:00:00]} 41. Ra7 {[%emt 0:03:57]} Kh7 {[%emt 0:12:28]} 42. Rc6 {[%emt 0:01:52][%csl LRa6,LRf6]} Kg6 {[%emt 0:00:15]} 43. Raxa6 {[%emt 0:04:55]} Rxa6 {[%emt 0:00:22]} 44. Rxa6 $17 {[%emt 0:00:02] KR-KR} Rb8 {[%emt 0:00:06] Dodges Rb6} 45. Ra7 {[%emt 0:01:57]} Rc8 {[%emt 0:02:59]} 46. Ra5 {[%emt 0:00:19]} Rb8 {[%emt 0:00:02]} ({Much weaker is} 46... Rxc3 47. Rxb5 Rc2 48. Rd5 $11) 47. Ra7 $1 {[%emt 0:00:01]} h5 {[%emt 0:00:13]} 48. h4 {[%emt 0:00:46]} Rb6 {[%emt 0:00:22]} 49. Rc7 {[%emt 0:00:41]} Kh6 {[%emt 0:01:57]} 50. g3 {[%emt 0:03:02]} g5 {[%emt 0:02:17]} (50... Re6 $15 {deserves consideration.}) 51. hxg5+ $11 {[%emt 0:00:12]} fxg5 {[%emt 0:00:37]} 52. Kh3 {[%emt 0:00:06]} Kg6 {[%emt 0:00:31] ...Re6 would now be deadly.} 53. Rc8 {[%emt 0:01:00]} Re6 {[%emt 0:00:50]} 54. Rc5 {[%emt 0:01:07] [#]} ({Better is} 54. c4 $15) 54... Re3 {[%emt 0:00:26]} ({Black should try} 54... Re2 $1 $17 {( -> ...g4+)} 55. Rc6+ Kf5 56. Rc5+ Kf6 (56... Re5 57. Rc6 $11) 57. Rc6+ Re6) 55. Kg2 {[%emt 0:00:20] The position is equal.} Re2+ {[%emt 0:00:22]} 56. Kf3 {[%emt 0:00:21]} Rc2 {[%emt 0:00:44]} 57. Ke4 {[%emt 0:00:49]} h4 {[%emt 0:00:28]} 58. gxh4 {[%emt 0:00:33]} gxh4 {[%emt 0:00:05] [#] aiming for ...h3.} 59. Rxb5 {[%emt 0:02:25]} h3 {[%emt 0:00:46][%cal Oh3h2]} 60. Kf4 $1 {[%emt 0:01:35]} h2 {[%emt 0:00:42]} 61. Rb1 {[%emt 0:00:02]} Rg2 {[%emt 0:00:28]} 62. Rh1 {[%emt 0:00:20]} Kh5 {[%emt 0:00:12]} 63. Kf3 {[%emt 0:00:07]} Rc2 {[%emt 0:00:04]} 64. Kg3 {[%emt 0:00:06] Weighted Error Value: White=0.15 (very precise) /Black=0.17 (very precise) .  Mistake:       	White=5     	Black=6      Inaccurate:     	White=4     	Black=4      OK:         	White=22    	Black=17     Best:        	White=5     	Black=4      Strong:       	White=3     	Black=1} 1/2-1/2

[Event "Romanian Championship 2024"]
[Site "Eforie Nord"]
[Date "2024.02.28"]
[Round "6.6"]
[White "Ognean, Mihnea-Ionut"]
[Black "Bonte, Andrei-Mihai"]
[Result "1-0"]
[ECO "B31"]
[WhiteElo "2382"]
[BlackElo "2266"]
[Annotator "TA"]
[PlyCount "55"]
[EventDate "2024.02.24"]
[EventType "swiss"]
[EventCountry "ROU"]
[SourceTitle "playchess.com"]
[Source "ChessBase"]
[SourceQuality "1"]
[TimeControl "40/5400+30:900+30"]

{[%evp 22,55,7,11,24,9,57,60,72,73,78,35,57,50,53,58,79,78,70,70,70,70,78,77,140,120,122,119,119,118,213,218,316,301,1045,1033]} 1. e4 {[%emt 0:00:03]} c5 {[%emt 0:01:16]} 2. Nf3 {[%emt 0:01:09]} Nc6 {[%emt 0:00:09]} 3. Bb5 {[%emt 0:02:05]} g6 {[%emt 0:03:35]} 4. O-O {[%emt 0:00:49]} Bg7 {[%emt 0:00:12]} 5. Re1 {[%emt 0:00:27]} Nf6 {[%emt 0:03:17][%cal Bg8f6,Bf6d5,Bd5c7,Bc7e6][%mdl 32]} 6. e5 {[%emt 0:01:46]} Nd5 {[%emt 0:00:11]} 7. Nc3 {[%emt 0:00:06]} Nc7 {[%emt 0:03:27]} 8. Bxc6 {[%emt 0:00:46]} dxc6 {[%emt 0:01:58]} 9. h3 {[%emt 0:01:17]} O-O {[%emt 0:04:32]} 10. d3 {[%emt 0:00:43]} Ne6 {[%emt 0:03:40]} 11. Ne4 {[%emt 0:08:05]} b6 {[%emt 0:04:37]} 12. a4 {[%emt 0:10:44][%cal Ba2a4,Ba4a5][%mdl 32]} Qc7 {[%emt 0:06:09]} 13. a5 {[%emt 0:01:36]} Bd7 {[%emt 0:04:28]} (13... Rb8 $11) 14. Neg5 $14 {[%emt 0:06:02]} h6 {[%emt 0:02:36] White is slightly better.} 15. Nxe6 {[%emt 0:01:49]} Bxe6 {[%emt 0:00:03]} 16. Bf4 {[%emt 0:04:06]} Bd5 {[%emt 0:09:37]} 17. Qe2 {[%emt 0:06:41]} Qd7 {[%emt 0:04:09]} 18. Nd2 {[%emt 0:06:41]} Kh7 {[%emt 0:06:35]} 19. Bg3 {[%emt 0:07:43]} Rad8 {[%emt 0:06:12]} 20. Qe3 {[%emt 0:05:56]} Be6 {[%emt 0:02:21]} 21. Ra4 {[%emt 0:00:30][%cal Ba1a4,Ba4e4,Be4e7][%mdl 32]} Rfe8 {[%emt 0:16:38]} 22. b3 {[%emt 0:12:24]} f6 {[%emt 0:10:03]} (22... Kg8 $142) 23. exf6 {[%emt 0:03:10]} exf6 {[%emt 0:00:09] [#] White must now prevent ...Bd5.} 24. Re4 {[%emt 0:00:03] White is more active.} Bf7 {[%emt 0:00:13]} 25. Re7 {[%emt 0:00:05] Hoping for Bc7.} f5 {[%emt 0:05:08]} (25... Qc8 $16 {might work better.}) 26. Bc7 $18 {[%emt 0:05:51]} f4 {[%emt 0:00:44]} (26... Qxe7 {was worth a try.} 27. Qxe7 Rxe7 28. Rxe7 Rf8) 27. Qe2 {[%emt 0:00:30]} ({Don't take} 27. Bxf4 Qf5 $18) (27. Bxd8 $2 {loses.} fxe3 28. R1xe3 (28. Rxd7 $2 exd2 29. Rxe8 Bxe8 $19) 28... Qxd8 $19) 27... Bc3 $2 {[%emt 0:01:16] [#]} (27... Rxe7 28. Qxe7 Qxe7 29. Rxe7 Rf8) 28. Bxd8 {[%emt 0:01:41] Weighted Error Value: White=0.05 (flawless) /Black=0.37.  Mistake:       	---       	Black=5      Inaccurate:     	White=1     	---        OK:         	White=10    	Black=4      Best:        	White=2     	---} 1-0

[Event "Romanian Championship 2024"]
[Site "Eforie Nord"]
[Date "2024.02.28"]
[Round "6.7"]
[White "Antal, Hunor-Zoltan"]
[Black "Ilinca, Felix-Antonio"]
[Result "0-1"]
[ECO "A35"]
[WhiteElo "2272"]
[BlackElo "2415"]
[Annotator "TA"]
[PlyCount "106"]
[EventDate "2024.02.24"]
[EventType "swiss"]
[EventCountry "ROU"]
[SourceTitle "playchess.com"]
[Source "ChessBase"]
[SourceQuality "1"]
[TimeControl "40/5400+30:900+30"]

{[%evp 22,106,20,20,22,20,17,0,0,0,0,-80,-81,-69,-73,-82,-80,-121,-79,-68,-73,-126,-118,-114,-111,-288,-299,-300,-131,-134,-127,-121,-127,-130,-129,-138,-123,-121,-121,-124,-118,-118,-123,-227,-116,-132,-129,-125,-138,-134,-117,-182,-93,-147,-134,-202,-195,-193,-185,-238,-239,-264,-256,-291,-289,-481,-481,-29982,-29983,-29983,-29984,-29983,-29984,-29984,-29985,-29991,-29985,-29984,-29985,-29985,-29986,-29986,-29987,-29987,-29988,-29988,-29989]} 1. Nf3 {[%emt 0:00:30]} c5 {[%emt 0:02:29]} 2. c4 {[%emt 0:00:35]} Nc6 {[%emt 0:00:41]} 3. Nc3 {[%emt 0:00:28]} g6 {[%emt 0:01:16]} 4. e3 {[%emt 0:01:08]} Nf6 {[%emt 0:03:19][%cal Bg8f6,Bf6d5,Bd5c3][%mdl 32]} 5. d4 {[%emt 0:00:23]} cxd4 {[%emt 0:00:49]} 6. exd4 {[%emt 0:00:06]} d5 {[%emt 0:00:32]} 7. cxd5 {[%emt 0:00:27]} Nxd5 {[%emt 0:00:17]} 8. Qb3 {[%emt 0:00:20]} Nxc3 {[%emt 0:01:09]} 9. Bc4 {[%emt 0:00:41]} Nd5 {[%emt 0:01:11]} 10. Bxd5 {[%emt 0:02:11]} e6 {[%emt 0:00:15]} 11. Bxc6+ {[%emt 0:00:07]} bxc6 {[%emt 0:00:07]} 12. O-O {[%emt 0:00:32]} f6 {[%emt 0:05:54]} 13. Bf4 {[%emt 0:09:20]} Qd5 {[%emt 0:06:15]} 14. Qe3 {[%emt 0:13:22]} Kf7 {[%emt 0:06:19] The position is equal.} 15. Rac1 {[%emt 0:05:16]} Bb7 {[%emt 0:05:53][%cal Of8e7]} 16. Be5 {[%emt 0:18:40]} fxe5 $17 {[%emt 0:18:01]} 17. Nxe5+ {[%emt 0:00:37]} Ke8 $1 {[%emt 0:00:52]} 18. Qf4 {[%emt 0:02:02]} Be7 $1 {[%emt 0:02:02][%cal Oc6c5]} 19. Qf7+ {[%emt 0:08:23]} Kd8 {[%emt 0:00:07][%cal Oc6c5] And now ...c5! would win.} 20. Rc5 {[%emt 0:06:18]} Qxd4 {[%emt 0:09:37]} (20... Bxc5 21. Qxb7 Rc8 22. Nf7+ Ke8 23. Qxc8+ (23. dxc5 Qd7 $18) 23... Kxf7 24. Qxh8 $18) 21. Rc3 {[%emt 0:16:15]} ({White should play} 21. Nxc6+ Bxc6 22. Rxc6) 21... Rf8 $1 {[%emt 0:09:25]} (21... Qxe5 $6 22. Rd1+ $15) 22. Qxe6 {[%emt 0:08:11]} Rf6 $1 {[%emt 0:02:22]} 23. Qb3 {[%emt 0:00:35]} (23. Qg8+ $17 {only move.} Kc7 24. Qxh7) 23... Kc7 $19 {[%emt 0:02:08]} 24. Re3 {[%emt 0:01:09]} Qd5 {[%emt 0:03:19]} (24... Bd6 $19 25. Nc4 Raf8 26. Nxd6 Rxd6 (26... Qxd6 $2 27. h3 $19) 27. Re7+ Rd7 28. Rxd7+ Qxd7) 25. Rd1 $17 {[%emt 0:02:31]} Qxb3 {[%emt 0:01:58]} 26. Rd7+ {[%emt 0:00:06] [#]} Kc8 $1 {[%emt 0:00:06]} 27. Rxb3 {[%emt 0:00:33]} Bd6 {[%emt 0:01:19] Strongly threatening ...Rb8.} 28. Rbxb7 {[%emt 0:00:39]} Bxe5 {[%emt 0:00:15]} 29. Rxh7 {[%emt 0:00:37][%cal Ob7g7]} Rb8 {[%emt 0:02:30]} 30. Rbe7 {[%emt 0:00:15][%cal Re7e8] [#]} Rd6 $1 {[%emt 0:00:39][%cal Rd6d1]} 31. g3 {[%emt 0:01:01] Black must now prevent Re8+.} ({Wrong is} 31. Re8+ $2 Rd8 32. Rxd8+ Kxd8 $19) 31... Bxb2 {[%emt 0:01:12]} 32. Re8+ {[%emt 0:00:51]} Rd8 {[%emt 0:00:05]} 33. Re6 {[%emt 0:00:31]} Rb6 {[%emt 0:00:38] aiming for ...c5.} 34. Rxa7 {[%emt 0:00:28][%cal Oh2h4]} Kb8 {[%emt 0:01:01]} 35. Ra4 {[%emt 0:00:42][%cal Oh2h4]} Bd4 {[%emt 0:00:33]} 36. Rxg6 {[%emt 0:00:56]} (36. Kg2 $17) 36... Rb1+ {[%emt 0:00:43]} 37. Kg2 {[%emt 0:00:05]} c5 {[%emt 0:00:26] Black is more active.} 38. Rga6 {[%emt 0:02:01]} (38. f4 $17 {is a better defense.}) 38... Kb7 $19 {[%emt 0:01:36][%cal Oc5c4]} 39. Ra7+ {[%emt 0:00:06]} Kc6 {[%emt 0:00:09]} 40. h4 {[%emt 0:00:00]} (40. Rf7 $142) 40... Rf8 {[%emt 0:00:00]} 41. f4 {[%emt 0:01:52]} Kd5 {[%emt 0:05:50]} 42. h5 {[%emt 0:02:39]} Rh8 {[%emt 0:03:19]} 43. g4 $2 {[%emt 0:01:51]} (43. R4a6) 43... Ke4 {[%emt 0:00:31] ...Rg1+ is the strong threat.} 44. Rf7 {[%emt 0:00:43]} (44. Ra3 $19 Kxf4 45. Rf7+ Kxg4 46. Rg3+ Kxh5 47. Rf1 Rxf1 48. Kxf1) 44... Rg1+ {[%emt 0:00:17] Black mates.} 45. Kh3 {[%emt 0:01:35]} Kf3 {[%emt 0:00:06][%cal Rg1h1]} 46. Ra3+ {[%emt 0:00:09]} Be3 {[%emt 0:00:06]} 47. Rxe3+ {[%emt 0:01:18]} Kxe3 {[%emt 0:00:05]} 48. Kh4 {[%emt 0:00:39]} Kf3 {[%emt 0:00:10]} 49. Rg7 {[%emt 0:00:09]} c4 {[%emt 0:00:20]} 50. h6 {[%emt 0:02:04]} Rxh6+ {[%emt 0:00:18]} 51. Kg5 {[%emt 0:00:04]} Rxg4+ {[%emt 0:00:22]} 52. Kxh6 {[%emt 0:00:02]} Rxg7 {[%emt 0:00:11]} 53. Kxg7 {[%emt 0:00:02]} Kxf4 {[%emt 0:00:07] Weighted Error Value: White=0.34/Black=0.09 (flawless) .  Loses game:     	White=1     	---        Missed win:     	---       	Black=1      Mistake:       	White=7     	---        Inaccurate:     	White=1     	Black=2      OK:         	White=14    	Black=17     Best:        	White=4     	Black=3      Strong:       	---       	Black=6} 0-1

[Event "Romanian Championship 2024"]
[Site "Eforie Nord"]
[Date "2024.02.28"]
[Round "6.8"]
[White "Prelipcean, Eric-Matei"]
[Black "Cosma, Ioan"]
[Result "0-1"]
[ECO "D03"]
[WhiteElo "2103"]
[BlackElo "2316"]
[Annotator "TA"]
[PlyCount "76"]
[EventDate "2024.02.24"]
[EventType "swiss"]
[EventCountry "ROU"]
[SourceTitle "playchess.com"]
[Source "ChessBase"]
[SourceQuality "1"]
[TimeControl "40/5400+30:900+30"]

{[%evp 15,76,-23,0,-15,19,-56,-55,-70,-40,-82,-72,-95,-98,-95,-101,-103,-103,-106,-111,-108,-103,-101,-108,-109,-105,-141,-137,-145,-145,-159,-176,-197,-97,-177,-170,-285,-250,-247,-245,-252,-238,-227,-221,-230,-161,-150,-73,-141,-114,-221,-217,-287,-237,-237,-237,-235,-180,-202,-202,-157,-41,-181,-189]} 1. d4 {[%emt 0:02:28]} Nf6 {[%emt 0:00:14]} 2. Nf3 {[%emt 0:00:06]} d5 {[%emt 0:00:20]} 3. Bg5 {[%emt 0:00:20]} Ne4 {[%emt 0:00:32]} 4. Bf4 {[%emt 0:00:27]} c5 {[%emt 0:06:07]} 5. e3 {[%emt 0:02:28]} Nc6 {[%emt 0:01:46]} 6. c3 {[%emt 0:01:58]} Qb6 {[%emt 0:03:31]} 7. Qc1 {[%emt 0:06:26]} Bf5 {[%emt 0:04:17]} 8. Nbd2 {[%emt 0:11:52]} Rc8 {[%emt 0:05:53]} 9. Be2 {[%emt 0:02:27]} g6 {[%emt 0:05:59]} 10. Ne5 {[%emt 0:05:15]} (10. Nxe4 $11 Bxe4 11. Qd2) 10... cxd4 $15 {[%emt 0:05:47]} 11. Nxe4 {[%emt 0:00:38] Schwarz steht etwas besser.} Bxe4 {[%emt 0:12:14]} 12. f3 {[%emt 0:02:44] Nxc6 wäre nun fies.} dxc3 {[%emt 0:07:44]} 13. Qxc3 {[%emt 0:01:24] [#]} Bg7 $1 {[%emt 0:00:06]} 14. fxe4 {[%emt 0:00:59]} O-O {[%emt 0:00:10]} 15. exd5 {[%emt 0:11:18]} Nxe5 {[%emt 0:04:23][%cal Bc6e5,Be5d7,Bd7b6,Bb6c4][%mdl 32]} 16. Qb3 {[%emt 0:00:07]} Nd7 {[%emt 0:05:34] Schwarz steht aktiver.} 17. O-O {[%emt 0:07:01][%cal Od5d6]} Bxb2 {[%emt 0:01:09]} 18. Qxb6 {[%emt 0:00:33]} Nxb6 {[%emt 0:00:11]} 19. Rab1 {[%emt 0:00:06] [#]} Ba3 {[%emt 0:01:30]} 20. Rb3 {[%emt 0:04:12]} Bd6 {[%emt 0:00:47]} 21. Bh6 {[%emt 0:04:57]} Rfd8 {[%emt 0:00:50][%cal Oc8c2]} 22. e4 {[%emt 0:00:11]} Rc2 {[%emt 0:05:32]} 23. Bg4 {[%emt 0:00:19]} Nc4 {[%emt 0:01:35]} (23... Rxa2 $19 {und Schwarz behält klar die Oberhand. Weiss muss nun ...Nc4 beachten.} 24. Rc1 Ra4) 24. Bd1 {[%emt 0:22:45]} (24. Rc1 $17 Rxc1+ 25. Bxc1) 24... Rxa2 $19 {[%emt 0:01:49]} 25. Rc3 {[%emt 0:01:08]} (25. Rxb7 {war angesagt.} a5 26. Bb3) 25... b5 {[%emt 0:03:51]} (25... Bc5+ 26. Kh1 b5 27. Bb3 $19) 26. Bb3 {[%emt 0:00:44]} Ra3 {[%emt 0:01:12] ...Be5 ist eine echte Drohung.} 27. Bc1 {[%emt 0:00:34]} Ra1 {[%emt 0:01:31]} 28. Bxc4 {[%emt 0:07:45]} bxc4 {[%emt 0:02:25]} 29. Rxc4 {[%emt 0:00:07]} f6 {[%emt 0:00:27]} 30. g3 {[%emt 0:00:29]} Rb8 {[%emt 0:04:08]} (30... a5 $142 {Und ...Ra8 würde nun gewinnen.} 31. Bf4 Rxf1+ 32. Kxf1 Bxf4 33. gxf4 f5) 31. Be3 {[%emt 0:00:20]} (31. Bf4 $142 Rxf1+ 32. Kxf1) 31... Ra3 {[%emt 0:01:34]} 32. Bd4 {[%emt 0:00:14]} (32. Bc5 $17 Bxc5+ 33. Rxc5) 32... a5 {[%emt 0:00:43]} 33. g4 {[%emt 0:02:54]} g5 {[%emt 0:01:04]} 34. Bc5 {[%emt 0:00:34]} Bxc5+ {[%emt 0:03:18]} 35. Rxc5 {[%emt 0:00:01]} Re3 {[%emt 0:00:47]} 36. d6 {[%emt 0:01:49]} exd6 {[%emt 0:01:14]} (36... Rxe4 $2 {zu gefräßig.} 37. d7 Rxg4+ 38. Kh1 $18) 37. Rxa5 {[%emt 0:00:10]} Kg7 {[%emt 0:00:36]} (37... Rxe4 $17 38. Rxf6 Rxg4+ 39. Kf1 Rf8) 38. Ra4 {[%emt 0:01:08]} ({Der einzige Zug:} 38. Ra7+ $15 Kg8 (38... Kg6 39. Re7 $11) 39. Re7) 38... Re8 {[%emt 0:08:40] Gewichteter Fehlerwert: Weiß=0.33/Schwarz=0.25 (präzise) .  Fehler:       	Weiß=6     	Schwarz=3     Ungenau:       	Weiß=2     	Schwarz=2     OK:         	Weiß=8     	Schwarz=12    Bester:       	Weiß=3     	Schwarz=3     Stark:        	---       	Schwarz=1} 0-1

[Event "Romanian Championship 2024"]
[Site "Eforie Nord"]
[Date "2024.02.28"]
[Round "6.9"]
[White "Cnejev, Vladimir-Alexandru"]
[Black "Nastase, Robert-Paul"]
[Result "1-0"]
[ECO "C02"]
[WhiteElo "2311"]
[BlackElo "2226"]
[Annotator "TA"]
[PlyCount "72"]
[EventDate "2024.02.24"]
[EventType "swiss"]
[EventCountry "ROU"]
[SourceTitle "playchess.com"]
[Source "ChessBase"]
[SourceQuality "1"]
[TimeControl "40/5400+30:900+30"]

{[%evp 10,72,-2,-10,-10,-44,-29,-31,-29,-55,0,-11,10,8,3,12,19,36,29,0,52,58,58,-14,96,84,79,73,179,182,157,175,153,152,287,281,471,469,471,462,454,458,485,474,498,499,484,498,494,487,562,497,669,537,698,697,689,678,1667,1488,1622,1648,1737,1407,982]} 1. e4 {[%emt 0:00:17]} e6 {[%emt 0:00:41]} 2. d4 {[%emt 0:00:10]} d5 {[%emt 0:00:06]} 3. e5 {[%emt 0:00:08]} c5 {[%emt 0:00:04]} 4. c3 {[%emt 0:00:06]} Nc6 {[%emt 0:00:06]} 5. Nf3 {[%emt 0:00:11]} Bd7 {[%emt 0:00:04]} 6. Bd3 {[%emt 0:00:31]} cxd4 {[%emt 0:00:10]} 7. O-O {[%emt 0:00:16]} Qb6 {[%emt 0:04:49]} 8. Re1 {[%emt 0:03:40]} Nge7 {[%emt 0:06:17] Black is slightly better.} 9. h4 {[%emt 0:00:49]} h5 {[%emt 0:16:12]} 10. Nbd2 {[%emt 0:10:03]} Rc8 {[%emt 0:02:40]} 11. Rb1 {[%emt 0:01:57]} g6 {[%emt 0:06:53]} 12. Nb3 {[%emt 0:01:50]} dxc3 {[%emt 0:01:00]} 13. bxc3 {[%emt 0:00:21]} Qc7 {[%emt 0:05:17]} 14. Nc5 {[%emt 0:24:51]} b6 {[%emt 0:00:06]} (14... Na5 $11 15. Be3 Nec6) 15. Nxd7 $14 {[%emt 0:00:36]} Qxd7 {[%emt 0:00:07]} 16. Nd4 {[%emt 0:10:01]} (16. Bb5 $14) 16... Bh6 {[%emt 0:08:23]} (16... Bg7 $11) 17. Bxh6 $1 $16 {[%emt 0:12:54] Black is now going downhill.} Rxh6 {[%emt 0:00:17]} 18. Ba6 {[%emt 0:00:38]} Rc7 {[%emt 0:00:43]} (18... Rb8 $16 {was necessary.}) 19. Nb5 $18 {[%emt 0:00:19]} Kf8 {[%emt 0:00:18][%cal Of8g7] [#]} 20. c4 $1 {[%emt 0:03:14]} d4 {[%emt 0:02:38][%cal Oc6b8] [#]} 21. c5 $1 {[%emt 0:03:53] White is much more active.} bxc5 {[%emt 0:00:12]} (21... Kg7 $16 {is a better defense.} 22. Nxc7 Qxc7) 22. Qc1 {[%emt 0:00:53]} g5 $2 {[%emt 0:01:11]} (22... Kg7 23. Qxc5 (23. Nxc7 Qxc7 24. Qxc5 Rh8 $18) 23... Rh8 24. Nxc7 Qxc7) 23. Qxc5 {[%emt 0:01:39] White is clearly winning.} (23. Nxc7 Qxc7 24. Qxc5 (24. Qxg5 Rg6 $18) 24... Qa5 25. Qxa5 Nxa5 $18) 23... gxh4 {[%emt 0:00:44]} 24. Nxc7 {[%emt 0:05:49]} Qxc7 {[%emt 0:00:05]} 25. Bb5 {[%emt 0:00:38] Strongly threatening Bxc6.} ({Less strong is} 25. Rb7 Qa5 26. Qxa5 Nxa5 $18) 25... Rg6 {[%emt 0:06:26]} 26. Rec1 {[%emt 0:03:38]} Kg7 {[%emt 0:01:31]} 27. Bxc6 {[%emt 0:06:14]} Nxc6 {[%emt 0:00:04]} 28. Qxc6 {[%emt 0:00:28]} Qxe5 {[%emt 0:00:07]} 29. Rb3 {[%emt 0:00:09]} ({Don't do} 29. Qf3 Qa5 30. Re1 (30. Rb7 Rf6 $18) 30... Rg5) 29... Qf4 {[%emt 0:00:12]} 30. Re1 {[%emt 0:01:04]} Rg4 {[%emt 0:02:09]} 31. Qf3 {[%emt 0:02:08]} Qh6 {[%emt 0:00:33]} 32. Re4 {[%emt 0:02:21]} Qc1+ {[%emt 0:02:16]} 33. Kh2 {[%emt 0:00:01] Threatening mate with Rb7.} Qg5 {[%emt 0:00:36]} 34. Rb7 {[%emt 0:01:26]} Qg6 {[%emt 0:00:04]} 35. Rf4 {[%emt 0:02:26]} Rxf4 {[%emt 0:00:29]} 36. Qxf4 {[%emt 0:00:03]} d3 {[%emt 0:00:06] Weighted Error Value: White=0.18 (very precise) /Black=0.55.  Mistake:       	White=1     	Black=5      Inaccurate:     	White=3     	Black=2      OK:         	White=11    	Black=6      Best:        	White=2     	Black=2      Strong:       	White=2     	---} 1-0